bitfinex-derivatives/quotes_BNBF0:USTF0_20230830
["timestamp","ask_amount","ask_price","bid_price","bid_amount"]
[1693435231937,0.0734268,223.41,223.06,0.82247071]
[1693435232139,0.0734268,223.41,223.03,0.82247071]
[1693435232343,0.0734268,223.41,223.04,0.82247071]
[1693435232642,0.0734268,223.41,223.05,0.82247071]
[1693435232942,0.0734268,223.41,223.06,0.82247071]
[1693435233243,0.0734268,223.41,223.07,0.82247071]
[1693435233442,0.0734268,223.41,223.03,0.82247071]
[1693435233642,0.0734268,223.41,223.04,0.82247071]
[1693435234143,0.0734268,223.41,223.03,0.82247071]
[1693435234340,0.0734268,223.41,223.04,0.82247071]
[1693435234541,0.0734268,223.41,223.05,0.82247071]
[1693435234740,0.0734268,223.41,223.06,0.82247071]
[1693435234941,0.0734268,223.41,223.03,0.82247071]
[1693435235139,0.0734268,223.41,223.04,0.82247071]
[1693435235343,0.0734268,223.4,223.05,0.82247071]
[1693435235543,0.0734268,223.4,223.06,0.82247071]
[1693435235742,0.0734268,223.4,223.03,0.82247071]
[1693435235936,0.0734268,223.4,223.04,0.82247071]
[1693435236143,0.0734268,223.41,223.05,0.82247071]
[1693435236443,0.0734268,223.41,223.06,0.82247071]
[1693435236643,0.0734268,223.4,223.03,0.82247071]
[1693435236844,0.0734268,223.41,223.04,0.82247071]
[1693435237044,0.0734268,223.41,223.02,0.07325527]
[1693435237045,0.0734268,223.4,223.05,0.82247071]
[1693435237241,0.0734268,223.4,223.03,0.82247071]
[1693435237444,0.0734268,223.4,223.04,0.82247071]
[1693435237644,0.0734268,223.4,223.05,0.82247071]
[1693435237837,0.0734268,223.4,223.06,0.82247071]
[1693435238042,0.0734268,223.4,223.03,0.82247071]
[1693435238241,0.0734268,223.4,223.04,0.82247071]
[1693435238443,0.0734268,223.4,223.05,0.82247071]
[1693435238639,0.0734268,223.4,223.06,0.82247071]
[1693435238840,0.0734268,223.4,223.03,0.89572598]
[1693435239147,0.0734268,223.4,223.04,0.82247071]
[1693435240647,0.0734268,223.39,223.04,0.82247071]
[1693435241243,0.0734268,223.4,223.04,0.82247071]
[1693435241646,0.0734268,223.39,223.04,0.89572598]
[1693435241850,0.0734268,223.39,223.05,0.82247071]
[1693435243749,0.0734268,223.38,223.05,0.82247071]
[1693435243945,0.0734268,223.38,223.05,0.89572598]
[1693435244146,0.0734268,223.38,223.06,0.82247071]
[1693435245647,0.0734268,223.37,223.06,0.89572598]
[1693435245848,0.0734268,223.37,223.07,0.82247071]
[1693435246751,0.0734268,223.36,223.07,0.89572598]
[1693435246953,0.0734268,223.36,223.08,0.82247071]
[1693435247751,0.0734268,223.35,223.09,0.07325527]
[1693435247951,0.0734268,223.35,223.1,0.82247071]
[1693435248742,0.14685361,223.37,223.1,0.82247071]
[1693435248743,0.22028041,223.34,223.1,0.82247071]
[1693435248948,0.0734268,223.32,223.11,0.07325527]
[1693435249149,0.0734268,223.32,223.12,0.82247071]
[1693435256255,0.0734268,223.32,223.12,0.89572598]
[1693435256456,0.0734268,223.32,223.13,0.82247071]
[1693435256652,0.0734268,223.32,223.11,0.07325527]
[1693435256846,0.0734268,223.32,223.12,0.82210757]
[1693435258054,0.0734268,223.32,223.12,0.89536284]
[1693435258353,0.0734268,223.32,223.13,0.82210757]
[1693435262357,0.0734268,223.37,223.17,0.07325527]
[1693435262562,0.0734268,223.39,223.18,0.82210757]
[1693435262755,0.0734268,223.39,223.16,0.82210757]
[1693435262955,0.0734268,223.4,223.17,0.82144058]
[1693435263154,0.0734268,223.4,223.18,0.82144058]
[1693435263357,0.0734268,223.4,223.15,0.07325527]
[1693435263562,0.0734268,223.4,223.16,0.8214395]
[1693435263963,2.44756025,223.53,223.16,0.8214395]
[1693435263964,0.0734268,223.41,223.16,0.8214395]
[1693435264163,0.0734268,223.41,223.17,0.8214395]
[1693435264364,0.0734268,223.41,223.18,0.8214395]
[1693435264559,0.0734268,223.41,223.14,0.07325527]
[1693435264757,0.0734268,223.41,223.15,0.82143786]
[1693435264963,0.0734268,223.42,223.15,0.82143786]
[1693435265165,0.0734268,223.41,223.16,0.82143786]
[1693435265464,0.0734268,223.41,223.17,0.82143786]
[1693435265664,0.0734268,223.41,223.18,0.82143786]
[1693435265865,0.0734268,223.42,223.14,0.82143786]
[1693435266060,0.0734268,223.42,223.15,0.82146392]
[1693435266260,0.0734268,223.42,223.13,0.82146392]
[1693435266463,0.0734268,223.42,223.14,0.82146392]
[1693435266664,0.0734268,223.42,223.13,0.82146392]
[1693435266863,0.0734268,223.42,223.14,0.82146392]
[1693435267164,0.0734268,223.42,223.15,0.82146392]
[1693435267365,0.0734268,223.42,223.16,0.82146392]
[1693435267562,0.0734268,223.42,223.17,0.82146392]
[1693435267759,0.0734268,223.43,223.18,0.82146392]
[1693435267960,0.0734268,223.43,223.11,0.07325527]
[1693435268265,0.0734268,223.43,223.12,0.89468796]
[1693435268465,0.0734268,223.43,223.13,0.82143269]
[1693435269165,0.0734268,223.43,223.14,0.82143269]
[1693435269366,0.0734268,223.43,223.15,0.82143269]
[1693435269567,0.0734268,223.44,223.16,0.82143269]
[1693435269762,0.0734268,223.44,223.12,0.82143269]
[1693435269963,0.0734268,223.44,223.13,0.82143269]
[1693435270167,0.0734268,223.44,223.12,0.82143269]
[1693435270367,0.0734268,223.44,223.13,0.82143269]
[1693435270568,0.0734268,223.44,223.12,0.82143269]
[1693435270769,0.0734268,223.44,223.13,0.82143269]
[1693435270969,0.0734268,223.44,223.14,0.82143269]
[1693435271269,0.0734268,223.44,223.15,0.82143269]
[1693435271470,0.0734268,223.44,223.16,0.82143269]
[1693435271672,0.0734268,223.44,223.12,0.82143269]
[1693435271970,0.0734268,223.44,223.13,0.82143269]
[1693435272270,0.0734268,223.44,223.14,0.82143269]
[1693435272471,0.0734268,223.44,223.11,0.82143269]
[1693435272666,0.0734268,223.44,223.12,0.82143269]
[1693435272868,0.0734268,223.45,223.11,0.82143269]
[1693435273067,0.0734268,223.45,223.12,0.82143269]
[1693435273272,0.0734268,223.45,223.13,0.82143269]
[1693435273472,0.0734268,223.45,223.14,0.82143269]
[1693435273672,0.0734268,223.45,223.15,0.82143269]
[1693435273872,0.0734268,223.45,223.16,0.82143269]
[1693435274071,0.0734268,223.45,223.11,0.82143269]
[1693435274273,0.0734268,223.45,223.12,0.82143269]
[1693435274472,0.0734268,223.45,223.11,0.82143269]
[1693435274672,0.0734268,223.45,223.12,0.82143269]
[1693435274868,0.0734268,223.45,223.11,0.82143269]
[1693435275070,0.0734268,223.45,223.12,0.82143269]
[1693435275274,0.0734268,223.45,223.13,0.82143269]
[1693435275473,0.0734268,223.45,223.14,0.82143269]
[1693435275671,0.0734268,223.45,223.15,0.82143269]
[1693435275974,0.0734268,223.45,223.1,0.07325527]
[1693435275975,0.0734268,223.45,223.16,0.82143269]
[1693435276172,0.0734268,223.45,223.17,0.82143269]
[1693435276368,0.0734268,223.45,223.18,0.82143269]
[1693435276575,0.0734268,223.45,223.1,0.07325527]
[1693435276773,0.0734268,223.45,223.11,0.82148423]
[1693435281873,0.0734268,223.44,223.11,0.82148423]
[1693435282274,0.14685361,223.47,223.11,0.82148423]
[1693435282275,0.0734268,223.45,223.11,0.82148423]
[1693435282680,0.0734268,223.44,223.11,0.82148423]
[1693435285588,0.0734268,223.44,223.11,0.8947395]
[1693435285887,0.0734268,223.44,223.12,0.82148423]
[1693435287788,0.0734268,223.43,223.12,0.82148423]
[1693435288688,0.0734268,223.43,223.12,0.8947395]
[1693435288892,0.0734268,223.43,223.13,0.82148423]
[1693435290691,0.0734268,223.42,223.13,0.82148423]
[1693435290988,0.0734268,223.42,223.13,0.8947395]
[1693435291197,0.0734268,223.42,223.14,0.82148423]
[1693435291689,0.1465755,223.44,223.14,0.82148423]
[1693435291894,0.07328775,223.41,223.15,0.82148423]
[1693435292094,0.07328775,223.41,223.14,0.82148423]
[1693435292288,0.07328775,223.41,223.15,0.82148423]
[1693435292490,0.07328775,223.41,223.16,0.82148423]
[1693435292689,0.07328775,223.41,223.17,0.82148423]
[1693435292890,0.07328775,223.41,223.15,0.82148423]
[1693435293093,0.07328775,223.41,223.16,0.82148423]
[1693435293293,0.07328775,223.41,223.17,0.82148423]
[1693435293593,0.07328775,223.41,223.18,0.82148423]
[1693435293794,0.07328775,223.4,223.15,0.89466656]
[1693435293995,0.07328775,223.4,223.16,0.82151845]
[1693435294795,0.07328775,223.38,223.17,0.07318233]
[1693435294994,0.07328775,223.38,223.18,0.82151845]
[1693435295396,0.07328775,223.37,223.18,0.82151845]
[1693435297997,0.07328775,223.38,223.18,0.89470078]
[1693435298196,0.07328775,223.38,223.19,0.82151845]
[1693435298496,0.07328775,223.38,223.18,0.07318233]
[1693435299296,0.07328775,223.38,223.17,0.07318233]
[1693435299497,0.07328775,223.38,223.18,0.82146795]
[1693435300599,0.07328775,223.38,223.18,0.89465028]
[1693435300893,0.07328775,223.38,223.18,0.07318233]
[1693435301698,0.07328775,223.38,223.17,0.07318233]
[1693435301899,0.07328775,223.38,223.18,0.82146413]
[1693435305007,0.07328775,223.37,223.18,0.82146413]
[1693435305204,0.07328775,223.38,223.18,0.82146413]
[1693435305604,0.07328775,223.38,223.18,0.89464646]
[1693435305801,0.07328775,223.38,223.19,0.82146413]
[1693435309807,0.07328775,223.38,223.18,0.82146413]
[1693435310008,0.07328775,223.38,223.19,0.82146458]
[1693435310203,0.07328775,223.38,223.18,0.82146458]
[1693435310508,0.07328775,223.38,223.19,0.8214624]
[1693435310705,0.07328775,223.38,223.18,0.8214624]
[1693435311007,0.07328775,223.38,223.19,0.82145437]
[1693435311202,0.07328775,223.38,223.18,0.82145437]
[1693435311507,0.07328775,223.38,223.19,0.82145716]
[1693435311807,0.07328775,223.38,223.17,0.07318233]
[1693435312104,0.07328775,223.38,223.18,0.89463812]
[1693435312306,0.07328775,223.38,223.19,0.82145579]
[1693435314007,0.07328775,223.38,223.18,0.82145579]
[1693435314202,0.07328775,223.38,223.19,0.82143654]
[1693435314405,0.07328775,223.38,223.17,0.07318233]
[1693435314605,0.07328775,223.38,223.18,0.82143872]
[1693435319210,0.07344133,223.38,223.18,0.82143872]
[1693435319715,0.07344133,223.37,223.18,0.82143872]
[1693435322414,0.07344133,223.38,223.18,0.82143872]
[1693435323915,2.44804466,223.51,223.18,0.82143872]
[1693435324120,0.07344257,223.38,223.18,0.82143872]
[1693435324417,0.07344257,223.38,223.18,0.89477177]
[1693435324616,0.07344257,223.38,223.18,0.07333305]
[1693435325614,0.07344257,223.38,223.17,0.07333305]
[1693435325819,0.07344257,223.38,223.18,0.82144432]
[1693435326921,0.07344257,223.38,223.18,0.89477737]
[1693435327220,0.07344257,223.38,223.18,0.07333305]
[1693435327820,0.07344257,223.37,223.18,0.07333305]
[1693435328120,0.07344257,223.38,223.18,0.07333305]
[1693435328820,0.07344257,223.38,223.19,0.82141949]
[1693435330023,0.07344257,223.38,223.18,0.07333305]
[1693435331616,0.07344257,223.38,223.19,0.82142795]
[1693435333024,0.07344257,223.38,223.18,0.07333305]
[1693435333223,0.07344257,223.38,223.19,0.82142933]
[1693435333426,0.07344257,223.38,223.18,0.07333305]
[1693435334424,0.07344257,223.38,223.19,0.8214314]
[1693435334720,0.07344257,223.38,223.18,0.07333305]
[1693435337329,0.07344257,223.38,223.19,0.82145082]
[1693435337627,0.07344257,223.38,223.18,0.07333305]
[1693435341527,0.07344257,223.38,223.19,0.82143429]
[1693435341925,0.07344257,223.38,223.18,0.07333305]
[1693435342929,0.07344257,223.38,223.19,0.82143328]
[1693435344624,0.07344257,223.38,223.18,0.07333305]
[1693435344827,0.07344257,223.37,223.17,0.07333305]
[1693435345030,0.07344257,223.38,223.18,0.8948026]
[1693435345231,0.07344257,223.37,223.17,0.07333305]
[1693435345529,0.07344257,223.37,223.18,0.82147252]
[1693435345730,0.07344257,223.38,223.18,0.89480557]
[1693435345930,0.14688515,223.4,223.11,0.14666611]
[1693435345931,0.07344257,223.37,223.17,0.07333305]
[1693435346131,0.07344257,223.38,223.18,0.89478469]
[1693435346332,0.07344257,223.38,223.19,0.82145164]
[1693435351533,0.07344257,223.38,223.18,0.07333305]
[1693435353338,0.07344257,223.38,223.19,0.82142827]
[1693435356343,0.07344257,223.38,223.18,0.07333305]
[1693435356642,0.07344257,223.37,223.17,0.07333305]
[1693435356841,0.07344257,223.37,223.18,0.82144798]
[1693435357140,0.07344257,223.38,223.18,0.89478103]
[1693435357341,0.07344257,223.38,223.18,0.07333305]
[1693435364746,0.07344257,223.38,222.77,2.44443526]
[1693435364948,0.07344585,223.38,223.18,0.07333475]
[1693435366753,0.07344585,223.37,223.18,0.07333475]
[1693435368251,0.07344585,223.38,223.18,0.07333475]
[1693435368550,0.07344585,223.37,223.18,0.07333475]
[1693435368853,0.07344585,223.38,223.18,0.07333475]
[1693435375052,0.07344585,223.38,223.19,0.82142281]
[1693435375253,0.07344585,223.38,223.18,0.07333475]
[1693435375553,0.07344585,223.38,223.19,0.82142298]
[1693435376457,0.07344585,223.38,223.18,0.07333475]
[1693435376752,0.07344585,223.37,223.17,0.07333475]
[1693435376961,0.07344585,223.37,223.18,0.82147959]
[1693435377154,0.07344585,223.37,223.17,0.07333475]
[1693435377455,0.07344585,223.37,223.18,0.82151337]
[1693435379257,0.07344585,223.37,223.17,0.07333475]
[1693435379450,0.07344585,223.37,223.16,0.07333475]
[1693435379656,0.07344585,223.37,223.17,0.8215738]
[1693435382956,0.07344585,223.38,223.17,0.89490855]
[1693435383258,0.07344585,223.38,223.18,0.8215738]
[1693435384156,0.07344585,223.33,223.12,0.07333475]
[1693435384454,0.07344585,223.35,223.13,0.82208372]
[1693435384653,0.07344585,223.35,223.1,0.07333475]
[1693435384855,0.07344585,223.35,223.11,0.82204599]
[1693435385556,0.07344585,223.36,223.11,0.82204599]
[1693435385858,0.07344585,223.36,223.12,0.82204599]
[1693435386054,0.07344585,223.36,223.13,0.82204599]
[1693435386258,0.07344585,223.36,223.09,0.07333475]
[1693435386461,0.07344585,223.36,223.1,0.82205179]
[1693435387361,0.07344585,223.37,223.1,0.82205179]
[1693435387561,0.07344585,223.37,223.09,0.82205179]
[1693435387861,0.07344585,223.37,223.1,0.82205179]
[1693435388060,0.07344585,223.37,223.11,0.82205179]
[1693435388260,0.07344585,223.37,223.12,0.82205179]
[1693435388560,0.07344585,223.37,223.13,0.82205179]
[1693435388761,0.07344585,223.37,223.09,0.82205179]
[1693435388964,0.07344585,223.37,223.1,0.82203428]
[1693435389158,0.07344585,223.37,223.11,0.82203428]
[1693435389360,0.07344585,223.37,223.12,0.82203428]
[1693435389561,0.07344585,223.38,223.09,0.82203428]
[1693435389760,0.07344585,223.38,223.1,0.82203428]
[1693435389962,0.07344585,223.38,223.09,0.82203428]
[1693435390155,0.07344585,223.38,223.1,0.82203428]
[1693435390355,0.07344585,223.38,223.11,0.82203428]
[1693435390557,0.07344585,223.38,223.08,0.82203428]
[1693435390761,0.07344585,223.38,223.09,0.82203428]
[1693435390961,0.07344585,223.38,223.1,0.82203428]
[1693435391154,0.07344585,223.38,223.11,0.82203428]
[1693435391356,0.07344585,223.38,223.12,0.82203428]
[1693435391560,0.07344585,223.38,223.08,0.82203428]
[1693435391756,0.07344585,223.38,223.09,0.82203428]
[1693435391956,0.07344585,223.38,223.08,0.82203428]
[1693435394462,0.07344585,223.39,223.08,0.82203428]
[1693435394662,0.07344585,223.39,223.09,0.82203428]
[1693435394864,0.07344585,223.39,223.0,0.1466695]
[1693435394865,0.07344585,223.39,223.1,0.82203428]
[1693435395168,0.07344585,223.39,223.11,0.82203428]
[1693435395364,0.07344585,223.39,223.12,0.82203428]
[1693435395567,0.07344585,223.39,223.13,0.82203428]
[1693435395760,0.07344585,223.39,223.06,0.07333475]
[1693435396065,0.07344585,223.39,223.07,0.8220226]
[1693435403773,0.07344585,223.38,223.07,0.8220226]
[1693435407075,0.07344585,223.38,223.07,0.89535735]
[1693435407278,0.07344585,223.38,223.08,0.8220226]
[1693435409573,0.07344585,223.37,223.08,0.8220226]
[1693435410779,0.07344585,223.37,223.08,0.89535735]
[1693435410977,0.07344585,223.37,223.09,0.8220226]
[1693435412475,0.07344585,223.36,223.09,0.8220226]
[1693435412779,0.07344585,223.36,223.09,0.89535735]
[1693435412980,0.07344585,223.36,223.1,0.8220226]
[1693435414482,0.07344585,223.35,223.1,0.8220226]
[1693435414782,0.07344585,223.35,223.1,0.89535735]
[1693435414981,0.07344585,223.35,223.11,0.8220226]
[1693435416983,0.07344585,223.34,223.11,0.8220226]
[1693435418483,0.07344585,223.32,223.12,0.07333475]
[1693435418684,0.07344585,223.32,223.13,0.8220226]
[1693435431089,0.07344585,223.32,223.12,0.07333475]
[1693435431294,0.07344585,223.32,223.13,0.82207715]
[1693435435097,0.07344585,223.32,223.12,0.07333475]
[1693435435296,0.07344585,223.31,223.11,0.07333475]
[1693435435491,0.07344585,223.32,223.12,0.82216352]
[1693435436594,0.07344585,223.31,223.1,0.07333475]
[1693435436791,0.07344585,223.31,223.11,0.82221474]
[1693435437193,0.07344585,223.31,223.11,0.89554949]
[1693435437397,0.07344585,223.31,223.11,0.07333475]
[1693435437596,0.07344585,223.32,223.1,0.07333475]
[1693435437897,0.07344585,223.32,223.11,0.82220748]
[1693435442097,0.07344585,223.32,223.1,0.89554223]
[1693435442302,0.07344585,223.32,223.11,0.82218827]
[1693435442791,0.07344585,223.32,223.09,0.07333475]
[1693435442792,0.07344585,223.32,223.1,0.89552302]
[1693435442996,0.07344585,223.32,223.11,0.82218827]
[1693435443593,0.07344585,223.32,223.09,0.07333475]
[1693435443798,0.07344585,223.32,223.1,0.82218522]
[1693435451400,0.07344585,223.33,223.1,0.82218522]
[1693435457204,0.07344585,223.32,223.1,0.82218522]
[1693435463509,0.07344585,223.31,223.1,0.82218522]
[1693435463707,0.07344585,223.32,223.1,0.82218522]
[1693435464014,0.07344585,223.31,223.1,0.82218522]
[1693435464214,0.07344585,223.31,223.09,0.89551997]
[1693435464416,0.07344585,223.31,223.1,0.82218522]
[1693435464615,0.1468917,223.34,223.1,0.82218522]
[1693435464616,0.07344585,223.32,223.1,0.82218522]
[1693435464915,0.07344585,223.31,223.1,0.82218522]
[1693435469421,0.07344585,223.31,223.1,0.89551997]
[1693435469624,0.07344585,223.31,223.11,0.82218522]
[1693435471123,0.07344585,223.31,223.09,0.07333475]
[1693435471320,0.07344585,223.31,223.1,0.82170493]
[1693435471518,2.44819514,223.44,223.1,0.82170493]
[1693435471519,0.07344585,223.3,223.1,0.82170493]
[1693435479829,0.07344585,223.31,223.1,0.82170493]
[1693435480229,2.44819514,223.44,223.1,0.82170493]
[1693435480432,0.07344735,223.31,223.09,0.0733187]
[1693435480630,0.07344735,223.31,223.1,0.82170493]
[1693435481021,0.07344735,223.3,223.1,0.82170493]
[1693435487634,0.07344735,223.31,223.1,0.82170493]
[1693435488231,0.07344735,223.3,223.1,0.82170493]
[1693435489031,0.14689471,223.33,223.1,0.82170493]
[1693435489032,0.07344735,223.31,223.1,0.82170493]
[1693435489334,0.07344735,223.3,223.1,0.82170493]
[1693435491235,0.07344735,223.3,223.1,0.89502363]
[1693435491434,0.07344735,223.3,223.11,0.82170493]
[1693435492637,0.07344735,223.3,223.09,0.0733187]
[1693435492831,0.07344735,223.3,223.1,0.82157643]
[1693435504943,0.07344735,223.32,223.11,0.0733187]
[1693435505137,0.07344735,223.32,223.12,0.82157643]
[1693435506545,0.07344735,223.33,223.12,0.82157643]
[1693435507745,0.07344735,223.33,223.1,0.0733187]
[1693435507942,0.07344735,223.33,223.11,0.82184044]
[1693435513545,0.07344735,223.33,223.12,0.82184044]
[1693435513845,0.07344735,223.34,223.1,0.0733187]
[1693435514046,0.07344735,223.34,223.11,0.82187525]
[1693435514748,0.07344735,223.34,223.12,0.82187525]
[1693435514953,0.07344735,223.34,223.09,0.0733187]
[1693435515248,0.07344735,223.34,223.1,0.82188558]
[1693435517851,0.07344735,223.34,223.09,0.0733187]
[1693435518051,0.07344735,223.34,223.1,0.82187626]
[1693435525858,0.07344735,223.33,223.1,0.82187626]
[1693435527155,0.07344735,223.34,223.1,0.82187626]
[1693435530259,0.07344735,223.33,223.1,0.82187626]
[1693435530558,0.07344735,223.33,223.1,0.89519496]
[1693435530760,0.07344735,223.33,223.11,0.82187626]
[1693435531058,0.07344735,223.33,223.12,0.82187626]
[1693435531257,0.07344735,223.33,223.03,0.1466374]
[1693435531258,0.07344735,223.33,223.1,0.0733187]
[1693435531560,0.07344735,223.33,223.11,0.82151031]
[1693435531761,0.07344735,223.33,223.1,0.82151031]
[1693435531954,0.07344735,223.33,223.11,0.82151031]
[1693435538460,0.07344735,223.32,223.11,0.89482901]
[1693435538664,0.07344735,223.32,223.12,0.82151031]
[1693435539464,0.07344735,223.32,223.12,0.89482901]
[1693435539663,0.14689471,223.34,223.12,0.89482901]
[1693435539664,0.07344735,223.31,223.12,0.0733187]
[1693435540163,0.07344735,223.31,223.11,0.0733187]
[1693435540364,0.07344735,223.31,223.12,0.82151292]
[1693435540861,0.07344735,223.32,223.12,0.89483162]
[1693435541062,0.07344735,223.32,223.12,0.0733187]
[1693435546569,0.07344735,223.31,223.11,0.0733187]
[1693435546771,0.07344735,223.32,223.12,0.82151813]
[1693435548167,0.07344735,223.32,223.12,0.89483683]
[1693435548368,0.07344735,223.32,223.12,0.0733187]
[1693435550269,0.07344735,223.31,223.11,0.0733187]
[1693435550573,0.07344735,223.31,223.12,0.821993]
[1693435561086,0.07344735,223.32,223.12,0.821993]
[1693435561286,0.07344735,223.38,223.17,0.0733187]
[1693435561588,0.07344735,223.4,223.19,0.0733187]
[1693435561784,0.07344735,223.4,223.2,0.821993]
[1693435562387,0.07344735,223.43,223.2,0.821993]
[1693435562583,0.07344735,223.43,223.17,0.821993]
[1693435562786,0.07344735,223.43,223.18,0.82109811]
[1693435562986,0.07344735,223.43,223.17,0.82109811]
[1693435563187,0.07344735,223.43,223.18,0.82109811]
[1693435563486,0.07344735,223.43,223.19,0.82109811]
[1693435563787,0.07344735,223.44,223.2,0.82109811]
[1693435563987,0.07344735,223.44,223.14,0.0733187]
[1693435564187,0.07344735,223.44,223.15,0.82111153]
[1693435564788,2.44824518,223.58,223.15,0.82111153]
[1693435564789,0.07344735,223.45,223.15,0.82111153]
[1693435564983,0.07344735,223.46,223.16,0.82111153]
[1693435565180,0.07344735,223.46,223.14,0.0733187]
[1693435565181,0.07344735,223.46,223.17,0.82111153]
[1693435565381,0.07344735,223.46,223.18,0.82111153]
[1693435565588,0.07344735,223.46,223.19,0.82111153]
[1693435565788,0.07344735,223.46,222.91,0.97758268]
[1693435565789,0.07344735,223.47,223.15,0.82111153]
[1693435565983,0.07344735,223.47,223.16,0.82111153]
[1693435566181,0.07344735,223.47,223.13,0.0733187]
[1693435566182,0.07344735,223.47,223.17,0.82111153]
[1693435566386,0.07344735,223.47,223.14,0.82111153]
[1693435566683,0.07344735,223.49,223.15,0.82111153]
[1693435566887,0.07344735,223.49,223.14,0.82111153]
[1693435567088,0.07344735,223.49,223.15,0.82111153]
[1693435567287,0.07344735,223.49,223.16,0.82111153]
[1693435567486,0.07344735,223.49,223.14,0.82111153]
[1693435567688,0.07344735,223.49,223.15,0.82111153]
[1693435567886,0.07344735,223.5,223.14,0.82111153]
[1693435568094,0.07344735,223.5,223.15,0.82111153]
[1693435568293,0.07344735,223.5,223.16,0.82111153]
[1693435568493,0.07344735,223.5,223.13,0.82111153]
[1693435568695,0.07344735,223.5,223.14,0.82111153]
[1693435568891,0.07344735,223.5,223.12,0.82111153]
[1693435569090,0.07344735,223.5,223.13,0.82111153]
[1693435569291,0.07344735,223.5,223.14,0.82111153]
[1693435569491,0.07344735,223.5,223.15,0.82111153]
[1693435569692,0.07344735,223.51,223.16,0.82111153]
[1693435569887,0.07344735,223.51,223.12,0.82111153]
[1693435570092,0.07344735,223.51,223.13,0.82111153]
[1693435570288,0.07344735,223.51,223.12,0.82111153]
[1693435570489,0.07344735,223.51,223.11,0.0733187]
[1693435570490,0.07344735,223.51,223.13,0.82111153]
[1693435570689,0.07344735,223.51,223.14,0.82111153]
[1693435570894,0.07344735,223.51,223.15,0.82111153]
[1693435571095,0.07344735,223.51,223.16,0.82111153]
[1693435571296,0.07344735,223.51,223.17,0.82111153]
[1693435571492,0.07344735,223.51,223.18,0.82111153]
[1693435571695,0.07344735,223.52,223.11,0.82111153]
[1693435571891,0.07344735,223.52,223.12,0.82111153]
[1693435572096,0.07344735,223.52,223.13,0.82111153]
[1693435572392,0.07344735,223.52,223.14,0.82111153]
[1693435572595,0.07344735,223.52,223.15,0.82111153]
[1693435572796,0.07344735,223.52,223.16,0.82111153]
[1693435572996,0.07344735,223.52,223.17,0.82111153]
[1693435573194,0.07344735,223.52,223.18,0.82111153]
[1693435573397,0.07344735,223.52,223.19,0.82111153]
[1693435573593,0.07344735,223.52,223.11,0.82111153]
[1693435573798,0.07344735,223.52,223.12,0.82111153]
[1693435573993,0.07344735,223.52,223.1,0.82111153]
[1693435574196,0.07344735,223.52,223.11,0.82111153]
[1693435574403,0.07344735,223.52,223.1,0.82111153]
[1693435574700,0.07344735,223.52,223.11,0.82111153]
[1693435574895,0.07344735,223.52,223.09,0.0733187]
[1693435574896,0.07344735,223.52,223.12,0.82111153]
[1693435575101,0.07344735,223.52,223.13,0.82111153]
[1693435575300,0.07344735,223.52,223.1,0.82111153]
[1693435575496,0.07344735,223.52,223.11,0.82111153]
[1693435575698,0.07344735,223.52,223.1,0.82111153]
[1693435576700,0.07344735,223.53,223.1,0.82111153]
[1693435581706,0.07344735,223.52,223.1,0.82111153]
[1693435584510,0.07344735,223.51,223.1,0.82111153]
[1693435586612,0.07344735,223.5,223.1,0.89443023]
[1693435586808,0.07344735,223.5,223.11,0.82111153]
[1693435588414,0.07344735,223.49,223.11,0.82111153]
[1693435588913,0.07344735,223.49,223.11,0.89443023]
[1693435589108,0.07344735,223.49,223.12,0.82111153]
[1693435590618,0.07344735,223.48,223.12,0.89443023]
[1693435590918,0.07344735,223.48,223.13,0.82111153]
[1693435591618,0.07344735,223.47,223.13,0.89443023]
[1693435591818,0.07344735,223.47,223.14,0.82111153]
[1693435592511,0.07344735,223.46,223.14,0.89443023]
[1693435592711,0.07344735,223.46,223.15,0.82111153]
[1693435593719,0.07344735,223.44,223.16,0.0733187]
[1693435593919,0.07344735,223.44,223.17,0.82111153]
[1693435594617,0.07344735,223.41,223.19,0.0733187]
[1693435594819,0.07344735,223.41,223.2,0.82111153]
[1693435608732,0.07344735,223.4,223.2,0.82111153]
[1693435610828,0.07344735,223.4,223.2,0.89443023]
[1693435611024,0.07344735,223.41,223.21,0.82111153]
[1693435612636,0.07344735,223.4,223.21,0.82111153]
[1693435633445,0.07344735,223.4,223.21,0.89443023]
[1693435633654,0.07344735,223.41,223.21,0.0733187]
[1693435634352,0.07344735,223.41,223.2,0.0733187]
[1693435634553,0.07344735,223.41,223.21,0.82091857]
[1693435655366,0.07344735,223.4,223.21,0.82091857]
[1693435665275,0.07344735,223.41,223.21,0.82091857]
[1693435665968,0.07344735,223.4,223.21,0.82091857]
[1693435666172,0.07344735,223.41,223.21,0.82091857]
[1693435669478,0.07344735,223.4,223.21,0.82091857]
[1693435698703,0.07344735,223.4,223.19,0.0733187]
[1693435698900,0.07344735,223.34,223.13,0.0733187]
[1693435699100,0.07344735,223.33,223.12,0.0733187]
[1693435699296,0.07344735,223.33,223.13,0.82236501]
[1693435699899,0.07344735,223.36,223.13,0.82236501]
[1693435700100,0.07344735,223.36,223.1,0.0733187]
[1693435700303,0.07344735,223.36,223.11,0.82237185]
[1693435700802,0.07344735,223.37,223.11,0.82237185]
[1693435701006,0.07344735,223.37,223.12,0.82237185]
[1693435701302,0.07344735,223.37,223.08,0.0733187]
[1693435701303,0.07344735,223.37,223.13,0.82237185]